[Event "Hungarian Rapid-ch 2022"]
[Site "Ajka"]
[Date "2022.07.17"]
[Round "13.13"]
[White "Udvardi, Zalan"]
[Black "Vertetics, Attila"]
[Result "1-0"]
[ECO "B12"]
[WhiteElo "2310"]
[BlackElo "2465"]
[Annotator "ChessBase"]
[PlyCount "45"]
[EventDate "2022.07.15"]
[EventType "swiss"]
[EventCountry "HUN"]
[SourceTitle "playchess.com"]
[Source "ChessBase"]
[SourceQuality "1"]
[TimeControl "900+10"]

1. e4 {[%emt 0:00:12]} c6 {[%emt 0:00:12]} 2. d4 {[%emt 0:00:03]} d5 {[%emt 0:00:01]} 3. e5 {[%emt 0:00:05]} Bf5 {[%emt 0:00:02]} 4. Nc3 {[%emt 0:00:09]} e6 {[%emt 0:00:02]} 5. g4 {[%emt 0:00:01]} Bg6 {[%emt 0:00:01]} 6. Nge2 {[%emt 0:00:02]} f6 {[%emt 0:00:02]} 7. h4 {[%emt 0:00:28]} fxe5 {[%emt 0:00:18]} 8. h5 {[%emt 0:00:02]} Bf7 {[%emt 0:00:03]} 9. dxe5 {[%emt 0:00:03]} c5 {[%emt 0:01:00]} 10. f4 {[%emt 0:00:20]} Nc6 {[%emt 0:00:20]} 11. Bg2 {[%emt 0:01:00]} Qb6 {[%emt 0:00:37]} 12. Ng3 {[%emt 0:03:43]} O-O-O {[%emt 0:00:43]} 13. O-O {[%emt 0:00:15]} Nge7 {[%emt 0:01:48]} 14. a4 {[%emt 0:00:32]} g6 {[%emt 0:00:21]} 15. Nb5 {[%emt 0:00:21]} Nd4 {[%emt 0:00:32]} 16. Nd6+ {[%emt 0:01:21]} Rxd6 {[%emt 0:00:02]} 17. exd6 {[%emt 0:00:01]} Qxd6 {[%emt 0:00:01]} 18. b4 {[%emt 0:00:34]} Bg7 {[%emt 0:00:42]} 19. h6 {[%emt 0:00:01]} Bxh6 {[%emt 0:02:34]} 20. bxc5 {[%emt 0:00:18]} Qxc5 {[%emt 0:00:02]} 21. Ba3 {[%emt 0:01:01]} Qc3 {[%emt 0:01:32]} 22. Bxe7 {[%emt 0:00:38]} Bg7 {[%emt 0:00:21]} 23. Qd3 {[%emt 0:00:41]} 1-0

[Event "Hungarian Rapid-ch 2022"]
[Site "Ajka"]
[Date "2022.07.17"]
[Round "13.14"]
[White "Czebe, Attila"]
[Black "Szamoskozi, Gabor"]
[Result "1-0"]
[ECO "B10"]
[WhiteElo "2385"]
[BlackElo "2243"]
[Annotator "ChessBase"]
[PlyCount "97"]
[EventDate "2022.07.15"]
[EventType "swiss"]
[EventCountry "HUN"]
[SourceTitle "playchess.com"]
[Source "ChessBase"]
[SourceQuality "1"]
[TimeControl "900+10"]

1. e4 {[%emt 0:00:12]} c6 {[%emt 0:00:17]} 2. Nc3 {[%emt 0:00:07]} d5 {[%emt 0:00:03]} 3. Nf3 {[%emt 0:00:01]} dxe4 {[%emt 0:00:02]} 4. Nxe4 {[%emt 0:00:02]} Nf6 {[%emt 0:00:01]} 5. Qe2 {[%emt 0:00:02]} Nxe4 {[%emt 0:00:03]} 6. Qxe4 {[%emt 0:00:02]} Nd7 {[%emt 0:00:01]} 7. Bc4 {[%emt 0:00:49]} Nf6 {[%emt 0:00:02]} 8. Ne5 {[%emt 0:00:06]} e6 {[%emt 0:00:02]} 9. Qe2 {[%emt 0:00:13]} b5 {[%emt 0:00:07]} 10. Bb3 {[%emt 0:00:20]} Qc7 {[%emt 0:00:04]} 11. O-O {[%emt 0:01:00]} Bd6 {[%emt 0:00:08]} 12. d4 {[%emt 0:00:02]} O-O {[%emt 0:00:08]} 13. c3 {[%emt 0:02:06]} a6 {[%emt 0:00:10]} 14. Re1 {[%emt 0:01:39]} Bb7 {[%emt 0:00:41]} 15. Bf4 {[%emt 0:00:09]} c5 {[%emt 0:00:06]} 16. dxc5 {[%emt 0:00:06]} Qxc5 {[%emt 0:00:06]} 17. Bg3 {[%emt 0:00:52]} Rad8 {[%emt 0:02:21]} 18. Bc2 {[%emt 0:01:38]} Bd5 {[%emt 0:00:57]} 19. a3 {[%emt 0:00:11]} a5 {[%emt 0:01:52]} 20. Bh4 {[%emt 0:02:33]} Be7 {[%emt 0:00:30]} 21. a4 {[%emt 0:00:22]} b4 {[%emt 0:00:38]} 22. c4 {[%emt 0:00:02]} Bb7 {[%emt 0:00:17]} 23. Rad1 {[%emt 0:00:15]} Rd4 {[%emt 0:02:25]} 24. Bxf6 {[%emt 0:00:02]} Bxf6 {[%emt 0:00:04]} 25. Nd7 {[%emt 0:00:20]} Rxd7 {[%emt 0:00:03]} 26. Rxd7 {[%emt 0:00:01]} Qc6 {[%emt 0:00:03]} 27. Rxb7 {[%emt 0:00:01]} Qxb7 {[%emt 0:00:01]} 28. Qh5 {[%emt 0:00:13]} g6 {[%emt 0:00:11]} 29. Qxa5 {[%emt 0:00:02]} Bxb2 {[%emt 0:00:27]} 30. Qb5 {[%emt 0:00:15]} Qe7 {[%emt 0:00:19]} 31. c5 {[%emt 0:00:03]} Bd4 {[%emt 0:02:20]} 32. c6 {[%emt 0:00:34]} Qa7 {[%emt 0:03:10]} 33. Re2 {[%emt 0:00:19]} Rb8 {[%emt 0:00:05]} 34. Qc4 {[%emt 0:00:17]} Qc5 {[%emt 0:00:42]} 35. Qxc5 {[%emt 0:01:41]} Bxc5 {[%emt 0:00:01]} 36. g3 {[%emt 0:00:40]} Kf8 {[%emt 0:00:06]} 37. a5 {[%emt 0:00:35]} Ke7 {[%emt 0:00:45]} 38. Ba4 {[%emt 0:00:12]} Ra8 {[%emt 0:00:25]} 39. Rc2 {[%emt 0:01:42]} Kd6 {[%emt 0:00:22]} 40. Rd2+ {[%emt 0:00:04]} Kc7 {[%emt 0:00:13]} 41. Rd7+ {[%emt 0:00:02]} Kc8 {[%emt 0:00:01]} 42. Rxf7 {[%emt 0:00:08]} Rxa5 {[%emt 0:00:03]} 43. Bb3 {[%emt 0:00:02]} Ra1+ {[%emt 0:00:13]} 44. Kg2 {[%emt 0:00:01]} Re1 {[%emt 0:00:05]} 45. Bc4 {[%emt 0:00:28]} Bd6 {[%emt 0:00:52]} 46. Rxh7 {[%emt 0:00:07]} e5 {[%emt 0:00:49]} 47. Be6+ {[%emt 0:00:12]} Kb8 {[%emt 0:00:02]} 48. Rb7+ {[%emt 0:00:02]} Ka8 {[%emt 0:00:01]} 49. c7 {[%emt 0:00:14]} 1-0

[Event "Hungarian Rapid-ch 2022"]
[Site "Ajka"]
[Date "2022.07.17"]
[Round "13.15"]
[White "Meszaros, Tamas"]
[Black "Nemeth, Zalan"]
[Result "1/2-1/2"]
[ECO "B30"]
[WhiteElo "2368"]
[BlackElo "2194"]
[Annotator "ChessBase"]
[PlyCount "123"]
[EventDate "2022.07.15"]
[EventType "swiss"]
[EventCountry "HUN"]
[SourceTitle "playchess.com"]
[Source "ChessBase"]
[SourceQuality "1"]
[TimeControl "900+10"]

1. e4 {[%emt 0:00:12]} c5 {[%emt 0:00:18]} 2. Nf3 {[%emt 0:00:03]} Nc6 {[%emt 0:00:01]} 3. Bb5 {[%emt 0:00:05]} e5 {[%emt 0:00:01]} 4. O-O {[%emt 0:01:54]} Bd6 {[%emt 0:00:02]} 5. c3 {[%emt 0:00:26]} a6 {[%emt 0:01:23]} 6. Ba4 {[%emt 0:03:24]} b5 {[%emt 0:00:01]} 7. Bc2 {[%emt 0:00:01]} Nge7 {[%emt 0:00:35]} 8. d4 {[%emt 0:00:02]} cxd4 {[%emt 0:00:01]} 9. cxd4 {[%emt 0:00:00]} Nxd4 {[%emt 0:00:01]} 10. Nxd4 {[%emt 0:00:12]} exd4 {[%emt 0:00:01]} 11. Qxd4 {[%emt 0:04:45]} Qc7 {[%emt 0:00:02]} 12. Qxg7 {[%emt 0:01:17]} Bxh2+ {[%emt 0:00:08]} 13. Kh1 {[%emt 0:00:01]} Be5 {[%emt 0:00:01]} 14. Qg5 {[%emt 0:00:06]} Rg8 {[%emt 0:00:04]} 15. Qd2 {[%emt 0:00:16]} Bb7 {[%emt 0:00:35]} 16. Nc3 {[%emt 0:00:19]} Rc8 {[%emt 0:00:31]} 17. Bb3 {[%emt 0:00:33]} Rg4 {[%emt 0:02:31]} 18. Re1 {[%emt 0:03:42]} Rh4+ {[%emt 0:00:24]} 19. Kg1 {[%emt 0:00:01]} Bxc3 {[%emt 0:00:23]} 20. bxc3 {[%emt 0:00:04]} Qh2+ {[%emt 0:00:03]} 21. Kf1 {[%emt 0:00:01]} Qh1+ {[%emt 0:00:02]} 22. Ke2 {[%emt 0:00:01]} Rxe4+ {[%emt 0:00:07]} 23. Kd1 {[%emt 0:00:02]} Rxe1+ {[%emt 0:02:45]} 24. Qxe1 {[%emt 0:00:02]} Qxe1+ {[%emt 0:00:03]} 25. Kxe1 {[%emt 0:00:01]} Bxg2 {[%emt 0:00:01]} 26. Bg5 {[%emt 0:01:09]} Rxc3 {[%emt 0:01:54]} 27. Kd2 {[%emt 0:00:02]} Rc7 {[%emt 0:00:01]} 28. Rg1 {[%emt 0:00:43]} Bb7 {[%emt 0:00:25]} 29. Bf4 {[%emt 0:00:24]} d6 {[%emt 0:02:21]} 30. Rg7 {[%emt 0:00:08]} Bd5 {[%emt 0:01:18]} 31. Rxh7 {[%emt 0:00:10]} Bxb3 {[%emt 0:00:03]} 32. axb3 {[%emt 0:00:00]} Ng6 {[%emt 0:00:12]} 33. Bg3 {[%emt 0:00:10]} Rc6 {[%emt 0:00:26]} 34. Rh1 {[%emt 0:00:03]} d5 {[%emt 0:00:05]} 35. Kd3 {[%emt 0:00:10]} Kd7 {[%emt 0:00:44]} 36. Kd4 {[%emt 0:00:03]} Ne7 {[%emt 0:00:21]} 37. Rh7 {[%emt 0:00:22]} Rf6 {[%emt 0:00:11]} 38. Bh4 {[%emt 0:00:22]} Rf5 {[%emt 0:00:11]} 39. Kc5 {[%emt 0:00:11]} Nc6 {[%emt 0:00:21]} 40. Bg3 {[%emt 0:00:10]} d4+ {[%emt 0:00:05]} 41. Kb6 {[%emt 0:00:01]} d3 {[%emt 0:00:24]} 42. Rh1 {[%emt 0:00:03]} a5 {[%emt 0:00:32]} 43. Rc1 {[%emt 0:00:03]} d2 {[%emt 0:00:02]} 44. Rd1 {[%emt 0:00:02]} Rd5 {[%emt 0:00:04]} 45. Bf4 {[%emt 0:00:02]} a4 {[%emt 0:02:10]} 46. bxa4 {[%emt 0:00:01]} bxa4 {[%emt 0:00:02]} 47. Rxd2 {[%emt 0:00:01]} Rxd2 {[%emt 0:00:18]} 48. Bxd2 {[%emt 0:00:01]} Nd4 {[%emt 0:00:00]} 49. Bc3 {[%emt 0:00:58]} Nc2 {[%emt 0:00:04]} 50. Kb5 {[%emt 0:00:12]} a3 {[%emt 0:00:02]} 51. Ka4 {[%emt 0:00:03]} a2 {[%emt 0:00:02]} 52. Kb3 {[%emt 0:00:01]} a1=Q {[%emt 0:00:02]} 53. Bxa1 {[%emt 0:00:01]} Nxa1+ {[%emt 0:00:01]} 54. Kb2 {[%emt 0:00:01]} Ke6 {[%emt 0:00:01]} 55. Kxa1 {[%emt 0:00:00]} Kd5 {[%emt 0:00:20]} 56. Kb2 {[%emt 0:00:02]} Ke4 {[%emt 0:00:07]} 57. Kc3 {[%emt 0:00:03]} Kf3 {[%emt 0:01:17]} 58. Kd4 {[%emt 0:00:01]} f6 {[%emt 0:00:19]} 59. Kd5 {[%emt 0:00:14]} Kf4 {[%emt 0:00:17]} 60. Ke6 {[%emt 0:00:18]} f5 {[%emt 0:00:07]} 61. f3 {[%emt 0:00:34]} Kxf3 {[%emt 0:00:01]} 62. Kxf5 {[%emt 0:00:03]} 1/2-1/2

[Event "Hungarian Rapid-ch 2022"]
[Site "Ajka"]
[Date "2022.07.17"]
[Round "13.16"]
[White "Papp, Levente"]
[Black "Gaal, Zsoka"]
[Result "1-0"]
[ECO "A04"]
[WhiteElo "2394"]
[BlackElo "2313"]
[Annotator "ChessBase"]
[PlyCount "71"]
[EventDate "2022.07.15"]
[EventType "swiss"]
[EventCountry "HUN"]
[SourceTitle "playchess.com"]
[Source "ChessBase"]
[SourceQuality "1"]
[TimeControl "900+10"]

1. Nf3 {[%emt 0:00:15]} c5 {[%emt 0:00:18]} 2. g3 {[%emt 0:00:05]} Nc6 {[%emt 0:00:04]} 3. Bg2 {[%emt 0:00:11]} g6 {[%emt 0:00:02]} 4. O-O {[%emt 0:00:17]} Bg7 {[%emt 0:00:10]} 5. c3 {[%emt 0:00:06]} Nf6 {[%emt 0:01:12]} 6. d4 {[%emt 0:00:01]} cxd4 {[%emt 0:00:26]} 7. cxd4 {[%emt 0:00:02]} O-O {[%emt 0:00:13]} 8. d5 {[%emt 0:00:26]} Nb4 {[%emt 0:00:21]} 9. Nc3 {[%emt 0:00:10]} d6 {[%emt 0:00:18]} 10. e4 {[%emt 0:00:18]} Na6 {[%emt 0:01:01]} 11. Be3 {[%emt 0:00:31]} Bd7 {[%emt 0:00:19]} 12. Rc1 {[%emt 0:00:29]} Qa5 {[%emt 0:00:33]} 13. Bd4 {[%emt 0:02:58]} b5 {[%emt 0:00:51]} 14. e5 {[%emt 0:00:22]} dxe5 {[%emt 0:00:44]} 15. Nxe5 {[%emt 0:00:02]} Rad8 {[%emt 0:00:15]} 16. Qb3 {[%emt 0:02:17]} b4 {[%emt 0:00:30]} 17. Ne4 {[%emt 0:00:02]} Nxe4 {[%emt 0:00:41]} 18. Bxe4 {[%emt 0:00:16]} Bb5 {[%emt 0:02:04]} 19. Rfe1 {[%emt 0:00:32]} e6 {[%emt 0:00:28]} 20. dxe6 {[%emt 0:03:22]} Rxd4 {[%emt 0:01:41]} 21. e7 {[%emt 0:00:05]} Bxe5 {[%emt 0:00:59]} 22. exf8=Q+ {[%emt 0:00:16]} Kxf8 {[%emt 0:00:02]} 23. Bxg6 {[%emt 0:00:12]} hxg6 {[%emt 0:00:54]} 24. Rxe5 {[%emt 0:00:02]} Qb6 {[%emt 0:00:05]} 25. Qe3 {[%emt 0:00:03]} Bc6 {[%emt 0:02:37]} 26. h4 {[%emt 0:02:08]} Kg7 {[%emt 0:01:22]} 27. Re7 {[%emt 0:00:51]} Bd5 {[%emt 0:01:10]} 28. h5 {[%emt 0:00:31]} Qf6 {[%emt 0:00:15]} 29. hxg6 {[%emt 0:00:17]} Kxg6 {[%emt 0:00:01]} 30. Re5 {[%emt 0:02:04]} Qc6 {[%emt 0:00:19]} 31. Qg5+ {[%emt 0:00:11]} Kh7 {[%emt 0:00:01]} 32. Qh5+ {[%emt 0:00:08]} Qh6 {[%emt 0:00:01]} 33. Rxd5 {[%emt 0:00:08]} Rxd5 {[%emt 0:00:03]} 34. Qxf7+ {[%emt 0:00:01]} Qg7 {[%emt 0:00:20]} 35. Qxd5 {[%emt 0:00:02]} Qxb2 {[%emt 0:00:03]} 36. Qb7+ {[%emt 0:00:13]} 1-0

[Event "Hungarian Rapid-ch 2022"]
[Site "Ajka"]
[Date "2022.07.17"]
[Round "13.17"]
[White "Gyenes, Mate"]
[Black "Lakos, Nikoletta"]
[Result "0-1"]
[ECO "B07"]
[WhiteElo "2048"]
[BlackElo "2203"]
[Annotator "ChessBase"]
[PlyCount "46"]
[EventDate "2022.07.15"]
[EventType "swiss"]
[EventCountry "HUN"]
[SourceTitle "playchess.com"]
[Source "ChessBase"]
[SourceQuality "1"]
[TimeControl "900+10"]

1. e4 {[%emt 0:00:14]} d6 {[%emt 0:00:13]} 2. d4 {[%emt 0:00:02]} Nf6 {[%emt 0:00:01]} 3. Nc3 {[%emt 0:00:03]} e5 {[%emt 0:00:42]} 4. dxe5 {[%emt 0:00:02]} dxe5 {[%emt 0:00:01]} 5. Qxd8+ {[%emt 0:00:01]} Kxd8 {[%emt 0:00:01]} 6. Bc4 {[%emt 0:00:02]} Ke8 {[%emt 0:00:55]} 7. Nf3 {[%emt 0:00:10]} Bd6 {[%emt 0:00:08]} 8. Bg5 {[%emt 0:00:57]} c6 {[%emt 0:00:11]} 9. O-O-O {[%emt 0:00:16]} Bc7 {[%emt 0:00:01]} 10. h3 {[%emt 0:00:15]} Nbd7 {[%emt 0:01:31]} 11. a3 {[%emt 0:04:11]} b5 {[%emt 0:00:30]} 12. Ba2 {[%emt 0:00:33]} a5 {[%emt 0:00:01]} 13. b4 {[%emt 0:01:08]} axb4 {[%emt 0:00:33]} 14. axb4 {[%emt 0:00:02]} h6 {[%emt 0:03:01]} 15. Be3 {[%emt 0:01:35]} Ke7 {[%emt 0:00:43]} 16. Rd3 {[%emt 0:00:57]} Bd6 {[%emt 0:01:27]} 17. Bxf7 {[%emt 0:00:32]} Bxb4 {[%emt 0:00:49]} 18. Na2 {[%emt 0:01:43]} Kxf7 {[%emt 0:00:42]} 19. Kb2 {[%emt 0:00:19]} Be7 {[%emt 0:00:23]} 20. Rhd1 {[%emt 0:00:08]} c5 {[%emt 0:01:16]} 21. Nc3 {[%emt 0:00:49]} c4 {[%emt 0:00:08]} 22. R3d2 {[%emt 0:00:05]} b4 {[%emt 0:00:39]} 23. Nb5 {[%emt 0:00:49]} c3+ {[%emt 0:00:02]} 0-1

[Event "Hungarian Rapid-ch 2022"]
[Site "Ajka"]
[Date "2022.07.17"]
[Round "13.18"]
[White "Egresi, Mate"]
[Black "Tubak, Daniel"]
[Result "1-0"]
[ECO "D37"]
[WhiteElo "2376"]
[BlackElo "2182"]
[Annotator "ChessBase"]
[PlyCount "99"]
[EventDate "2022.07.15"]
[EventType "swiss"]
[EventCountry "HUN"]
[SourceTitle "playchess.com"]
[Source "ChessBase"]
[SourceQuality "1"]
[TimeControl "900+10"]

1. d4 {[%emt 0:00:12]} Nf6 {[%emt 0:00:11]} 2. c4 {[%emt 0:00:01]} e6 {[%emt 0:00:01]} 3. Nf3 {[%emt 0:00:01]} d5 {[%emt 0:00:01]} 4. Nc3 {[%emt 0:00:01]} dxc4 {[%emt 0:00:03]} 5. e4 {[%emt 0:00:01]} Bb4 {[%emt 0:00:02]} 6. Bg5 {[%emt 0:00:04]} h6 {[%emt 0:00:18]} 7. Bxf6 {[%emt 0:00:03]} Qxf6 {[%emt 0:00:02]} 8. Bxc4 {[%emt 0:00:03]} c5 {[%emt 0:00:04]} 9. e5 {[%emt 0:00:14]} Qd8 {[%emt 0:00:02]} 10. O-O {[%emt 0:00:05]} cxd4 {[%emt 0:00:03]} 11. Ne4 {[%emt 0:00:22]} O-O {[%emt 0:01:01]} 12. Qe2 {[%emt 0:00:01]} Nc6 {[%emt 0:00:12]} 13. Rad1 {[%emt 0:00:09]} a6 {[%emt 0:00:47]} 14. Bd3 {[%emt 0:00:06]} Be7 {[%emt 0:00:30]} 15. Rfe1 {[%emt 0:01:38]} g6 {[%emt 0:01:04]} 16. Ng3 {[%emt 0:02:26]} Kg7 {[%emt 0:00:47]} 17. Qe4 {[%emt 0:00:41]} Rh8 {[%emt 0:00:21]} 18. h4 {[%emt 0:00:07]} h5 {[%emt 0:00:07]} 19. Qf4 {[%emt 0:00:27]} Nb4 {[%emt 0:00:20]} 20. Be4 {[%emt 0:01:39]} Nd5 {[%emt 0:01:21]} 21. Bxd5 {[%emt 0:01:55]} Qxd5 {[%emt 0:00:57]} 22. Rxd4 {[%emt 0:00:01]} Qb5 {[%emt 0:00:34]} 23. Ng5 {[%emt 0:00:11]} Rf8 {[%emt 0:00:42]} 24. N3e4 {[%emt 0:00:09]} b6 {[%emt 0:01:16]} 25. Nf6 {[%emt 0:02:45]} Ra7 {[%emt 0:00:09]} 26. Nfh7 {[%emt 0:00:44]} Bxg5 {[%emt 0:01:02]} 27. Nxg5 {[%emt 0:00:01]} Qe8 {[%emt 0:00:09]} 28. Qf6+ {[%emt 0:00:11]} Kg8 {[%emt 0:00:01]} 29. Rd6 {[%emt 0:00:24]} Qe7 {[%emt 0:00:52]} 30. Rxb6 {[%emt 0:00:49]} Qxf6 {[%emt 0:00:42]} 31. exf6 {[%emt 0:00:01]} Bb7 {[%emt 0:01:02]} 32. Rc1 {[%emt 0:00:33]} Bd5 {[%emt 0:00:03]} 33. a4 {[%emt 0:00:08]} a5 {[%emt 0:00:35]} 34. Rc5 {[%emt 0:00:04]} Rd8 {[%emt 0:01:03]} 35. Rbb5 {[%emt 0:00:07]} Rda8 {[%emt 0:00:09]} 36. f3 {[%emt 0:00:04]} Kf8 {[%emt 0:00:05]} 37. Kf2 {[%emt 0:00:01]} Ke8 {[%emt 0:00:03]} 38. Ke3 {[%emt 0:00:06]} Kd8 {[%emt 0:00:33]} 39. Kf4 {[%emt 0:00:20]} Ke8 {[%emt 0:00:02]} 40. Ne4 {[%emt 0:00:24]} Bxe4 {[%emt 0:00:10]} 41. fxe4 {[%emt 0:00:03]} Kd7 {[%emt 0:00:14]} 42. Kg5 {[%emt 0:00:37]} Ra6 {[%emt 0:01:58]} 43. Rb7+ {[%emt 0:00:23]} Kd6 {[%emt 0:00:01]} 44. Rcb5 {[%emt 0:01:09]} R8a7 {[%emt 0:00:03]} 45. e5+ {[%emt 0:00:31]} Kc6 {[%emt 0:00:03]} 46. Rxa7 {[%emt 0:00:02]} Rxa7 47. Kh6 {[%emt 0:00:01]} Rd7 {[%emt 0:00:08]} 48. Rxa5 {[%emt 0:00:05]} Rd5 {[%emt 0:00:03]} 49. Rxd5 {[%emt 0:00:29]} exd5 {[%emt 0:00:02]} 50. e6 {[%emt 0:00:03]} 1-0

[Event "Hungarian Rapid-ch 2022"]
[Site "Ajka"]
[Date "2022.07.17"]
[Round "13.19"]
[White "Martini, Balazs"]
[Black "Mozes, Ervin"]
[Result "0-1"]
[ECO "A46"]
[WhiteElo "2348"]
[BlackElo "2039"]
[Annotator "ChessBase"]
[PlyCount "70"]
[EventDate "2022.07.15"]
[EventType "swiss"]
[EventCountry "HUN"]
[SourceTitle "playchess.com"]
[Source "ChessBase"]
[SourceQuality "1"]
[TimeControl "900+10"]

1. d4 {[%emt 0:00:13]} Nf6 {[%emt 0:00:11]} 2. Nf3 {[%emt 0:00:04]} d6 {[%emt 0:00:01]} 3. Bf4 {[%emt 0:00:05]} c6 {[%emt 0:00:03]} 4. e3 {[%emt 0:00:03]} Qb6 {[%emt 0:00:22]} 5. b3 {[%emt 0:00:44]} Bf5 {[%emt 0:00:39]} 6. Be2 {[%emt 0:00:29]} Qa5+ {[%emt 0:01:51]} 7. Nfd2 {[%emt 0:02:33]} e5 {[%emt 0:01:03]} 8. Bg3 {[%emt 0:02:00]} Ne4 {[%emt 0:00:50]} 9. O-O {[%emt 0:02:16]} Nxg3 {[%emt 0:00:08]} 10. hxg3 {[%emt 0:00:34]} Be7 {[%emt 0:01:52]} 11. Nc4 {[%emt 0:00:19]} Qc7 {[%emt 0:00:04]} 12. Bg4 {[%emt 0:01:01]} Bxg4 {[%emt 0:01:23]} 13. Qxg4 {[%emt 0:00:03]} O-O {[%emt 0:00:03]} 14. dxe5 {[%emt 0:01:26]} d5 {[%emt 0:00:28]} 15. Nd6 {[%emt 0:00:17]} Bxd6 {[%emt 0:00:48]} 16. exd6 {[%emt 0:00:01]} Qxd6 {[%emt 0:00:00]} 17. Nd2 {[%emt 0:00:22]} Nd7 {[%emt 0:00:05]} 18. Nf3 {[%emt 0:01:00]} Ne5 {[%emt 0:00:14]} 19. Qd4 {[%emt 0:00:08]} Nxf3+ {[%emt 0:00:42]} 20. gxf3 {[%emt 0:00:01]} Qe7 {[%emt 0:00:07]} 21. Kg2 {[%emt 0:00:10]} Rfd8 {[%emt 0:00:16]} 22. Rh1 {[%emt 0:00:11]} c5 {[%emt 0:01:55]} 23. Qd3 {[%emt 0:00:04]} h6 {[%emt 0:00:03]} 24. Rh4 {[%emt 0:00:07]} Rd6 {[%emt 0:00:15]} 25. Rah1 {[%emt 0:00:43]} Rad8 {[%emt 0:00:12]} 26. c3 {[%emt 0:00:18]} b6 {[%emt 0:00:51]} 27. Rd1 {[%emt 0:00:31]} Qe5 {[%emt 0:00:19]} 28. Rf4 {[%emt 0:00:12]} R8d7 {[%emt 0:00:56]} 29. Rf5 {[%emt 0:00:45]} Qe6 {[%emt 0:00:04]} 30. g4 {[%emt 0:00:13]} g6 {[%emt 0:01:14]} 31. Rf4 {[%emt 0:00:07]} Kg7 {[%emt 0:00:13]} 32. b4 {[%emt 0:01:13]} Qe5 {[%emt 0:00:26]} 33. bxc5 {[%emt 0:00:11]} bxc5 {[%emt 0:00:03]} 34. Rb1 {[%emt 0:00:05]} d4 {[%emt 0:00:28]} 35. exd4 {[%emt 0:01:13]} Qxf4 {[%emt 0:00:04]} 0-1

[Event "Hungarian Rapid-ch 2022"]
[Site "Ajka"]
[Date "2022.07.17"]
[Round "13.20"]
[White "Straubinger, Daniel"]
[Black "Gombocz, Ferenc Jr."]
[Result "0-1"]
[ECO "C60"]
[WhiteElo "2349"]
[BlackElo "2229"]
[Annotator "ChessBase"]
[PlyCount "142"]
[EventDate "2022.07.15"]
[EventType "swiss"]
[EventCountry "HUN"]
[SourceTitle "playchess.com"]
[Source "ChessBase"]
[SourceQuality "1"]
[TimeControl "900+10"]

1. e4 {[%emt 0:00:13]} e5 {[%emt 0:00:12]} 2. Nf3 {[%emt 0:00:04]} Nc6 {[%emt 0:00:02]} 3. Bb5 {[%emt 0:00:10]} g6 {[%emt 0:00:04]} 4. O-O {[%emt 0:00:09]} Bg7 {[%emt 0:00:02]} 5. c3 {[%emt 0:00:07]} a6 {[%emt 0:00:02]} 6. Ba4 {[%emt 0:00:03]} d6 {[%emt 0:00:02]} 7. h3 {[%emt 0:00:05]} Bd7 {[%emt 0:00:03]} 8. d4 {[%emt 0:00:09]} Nf6 {[%emt 0:00:03]} 9. Re1 {[%emt 0:00:51]} O-O {[%emt 0:00:05]} 10. Nbd2 {[%emt 0:00:18]} Re8 {[%emt 0:00:13]} 11. Bb3 {[%emt 0:01:24]} h6 {[%emt 0:01:18]} 12. a4 {[%emt 0:01:15]} Nh7 {[%emt 0:02:25]} 13. Nf1 {[%emt 0:00:08]} Na5 {[%emt 0:01:30]} 14. Ba2 {[%emt 0:00:04]} b6 {[%emt 0:00:02]} 15. Ne3 {[%emt 0:02:40]} Be6 {[%emt 0:01:07]} 16. Bxe6 {[%emt 0:02:18]} Rxe6 {[%emt 0:00:24]} 17. b4 {[%emt 0:00:01]} Nb7 {[%emt 0:00:13]} 18. Qd3 {[%emt 0:00:06]} Re8 {[%emt 0:01:07]} 19. Bb2 {[%emt 0:00:23]} Ng5 {[%emt 0:00:24]} 20. Nxg5 {[%emt 0:00:19]} Qxg5 {[%emt 0:00:30]} 21. Nd5 {[%emt 0:00:06]} Qd8 {[%emt 0:00:22]} 22. Qc4 {[%emt 0:01:12]} exd4 {[%emt 0:03:08]} 23. cxd4 {[%emt 0:00:32]} c5 {[%emt 0:00:03]} 24. Rad1 {[%emt 0:00:05]} a5 {[%emt 0:02:27]} 25. b5 {[%emt 0:00:21]} cxd4 {[%emt 0:00:15]} 26. Bxd4 {[%emt 0:00:14]} Rc8 {[%emt 0:00:36]} 27. Qd3 {[%emt 0:00:02]} Nc5 {[%emt 0:00:12]} 28. Bxc5 {[%emt 0:00:04]} dxc5 {[%emt 0:00:39]} 29. Qc4 {[%emt 0:01:25]} Bd4 {[%emt 0:00:09]} 30. Re2 {[%emt 0:00:55]} Qd6 {[%emt 0:00:42]} 31. Kh1 {[%emt 0:00:34]} Kg7 {[%emt 0:00:52]} 32. Rde1 {[%emt 0:02:24]} Rcd8 {[%emt 0:00:29]} 33. Rd1 {[%emt 0:00:33]} f5 {[%emt 0:00:39]} 34. Nc3 {[%emt 0:00:38]} Qe6 {[%emt 0:00:12]} 35. Qxe6 {[%emt 0:00:05]} Rxe6 {[%emt 0:00:02]} 36. Rdd2 {[%emt 0:00:51]} Rde8 {[%emt 0:00:21]} 37. Nd5 {[%emt 0:00:09]} Rxe4 {[%emt 0:00:08]} 38. Rxe4 {[%emt 0:00:04]} Rxe4 {[%emt 0:00:04]} 39. Nxb6 {[%emt 0:00:02]} Be5 {[%emt 0:00:16]} 40. g3 {[%emt 0:00:00]} c4 {[%emt 0:00:00]} 41. f4 {[%emt 0:00:16]} c3 {[%emt 0:00:16]} 42. Rc2 {[%emt 0:00:26]} Bd4 {[%emt 0:00:08]} 43. Nc4 {[%emt 0:00:04]} Re1+ {[%emt 0:00:12]} 44. Kg2 {[%emt 0:00:02]} Ra1 {[%emt 0:00:05]} 45. Nxa5 {[%emt 0:00:17]} Rb1 {[%emt 0:00:19]} 46. Nc4 {[%emt 0:00:25]} Rb4 {[%emt 0:00:07]} 47. Na3 {[%emt 0:00:08]} Rxa4 {[%emt 0:00:16]} 48. Nb1 {[%emt 0:00:04]} Rb4 {[%emt 0:00:09]} 49. Na3 {[%emt 0:00:01]} Rb3 {[%emt 0:00:07]} 50. Nc4 {[%emt 0:00:02]} Rxb5 {[%emt 0:00:02]} 51. Kf3 {[%emt 0:00:02]} Rb4 {[%emt 0:00:05]} 52. Na3 {[%emt 0:00:11]} Rb2 {[%emt 0:00:21]} 53. Ke2 {[%emt 0:00:26]} Bc5 {[%emt 0:00:12]} 54. Rxb2 {[%emt 0:00:14]} cxb2 {[%emt 0:00:02]} 55. Nb1 {[%emt 0:00:01]} h5 {[%emt 0:00:13]} 56. Kf3 {[%emt 0:00:05]} Kf6 {[%emt 0:00:09]} 57. g4 {[%emt 0:00:01]} Ke6 {[%emt 0:00:03]} 58. gxh5 {[%emt 0:00:07]} gxh5 {[%emt 0:00:02]} 59. Ke2 {[%emt 0:00:06]} Kd5 {[%emt 0:00:13]} 60. Kd3 {[%emt 0:00:00]} Bb4 {[%emt 0:00:07]} 61. Kc2 {[%emt 0:00:18]} Ke4 {[%emt 0:00:02]} 62. Kxb2 {[%emt 0:00:01]} Kxf4 63. Kb3 Be1 {[%emt 0:00:13]} 64. Na3 {[%emt 0:00:04]} Kg3 {[%emt 0:00:22]} 65. Kc2 {[%emt 0:00:13]} Kxh3 {[%emt 0:00:09]} 66. Kd1 {[%emt 0:00:01]} Bf2 {[%emt 0:00:04]} 67. Ke2 {[%emt 0:00:18]} Kg2 {[%emt 0:00:01]} 68. Nc4 {[%emt 0:00:00]} h4 {[%emt 0:00:11]} 69. Ne5 {[%emt 0:00:04]} h3 {[%emt 0:00:34]} 70. Nf3 {[%emt 0:00:16]} f4 {[%emt 0:00:16]} 71. Nd2 {[%emt 0:00:43]} h2 {[%emt 0:00:04]} 0-1